[Event "Titled Tuesday Blitz May 4 2021"]
[White "Begunov, Konstantin"]
[Black "Rustemov, Alexander"]
[WhiteFideId "4118510"]
[BlackFideId "4119002"]
[WhiteElo "2262"]
[BlackElo "2622"]
[Result "0-1"]
[Round "08"]
[TimeControl "180+1"]
[Date "2021.05.04"]
[WhiteClock "0:00:01"]
[BlackClock "0:00:18"]

1. d4 {[%clk 0:02:56]}  d5 {[%clk 0:02:57]} 2. c4 {[%clk 0:02:56]}  dxc4 {[%clk 0:02:56]} 3. Nf3 {[%clk 0:02:56]}  Nf6 {[%clk 0:02:56]} 4. e3 {[%clk 0:02:56]}  e6 {[%clk 0:02:56]} 5. Bxc4 {[%clk 0:02:56]}  c5 {[%clk 0:02:57]} 6. Nc3 {[%clk 0:02:55]}  a6 {[%clk 0:02:57]} 7. O-O {[%clk 0:02:51]}  b5 {[%clk 0:02:57]} 8. Be2 {[%clk 0:02:51]}  Bb7 {[%clk 0:02:56]} 9. b3 {[%clk 0:02:41]}  Nbd7 {[%clk 0:02:48]} 10. Bb2 {[%clk 0:02:41]}  Qb8 {[%clk 0:02:41]} 11. dxc5 {[%clk 0:02:34]}  Bxc5 {[%clk 0:02:38]} 12. Nd4 {[%clk 0:02:33]}  O-O {[%clk 0:02:33]} 13. Bf3 {[%clk 0:02:33]}  Ne5 {[%clk 0:02:32]} 14. Bxb7 {[%clk 0:02:30]}  Qxb7 {[%clk 0:02:33]} 15. Rc1 {[%clk 0:02:22]}  Rac8 {[%clk 0:02:26]} 16. Nce2 {[%clk 0:02:09]}  Rfd8 {[%clk 0:02:23]} 17. Rc2 {[%clk 0:02:00]}  Ne4 {[%clk 0:02:04]} 18. Ng3 {[%clk 0:01:49]}  Nxg3 {[%clk 0:01:50]} 19. hxg3 {[%clk 0:01:50]}  Bxd4 {[%clk 0:01:51]} 20. Rd2 {[%clk 0:01:09]}  Nc6 {[%clk 0:01:33]} 21. Bxd4 {[%clk 0:01:09]}  Rd5 {[%clk 0:01:21]} 22. Ba1 {[%clk 0:00:57]}  Rcd8 {[%clk 0:01:15]} 23. Rxd5 {[%clk 0:00:57]}  Rxd5 {[%clk 0:01:15]} 24. Qc1 {[%clk 0:00:57]}  Qd7 {[%clk 0:01:12]} 25. Qc3 {[%clk 0:00:46]}  f6 {[%clk 0:01:11]} 26. e4 {[%clk 0:00:42]}  Rd3 {[%clk 0:01:10]} 27. Qc5 {[%clk 0:00:42]}  b4 {[%clk 0:01:01]} 28. Qb6 {[%clk 0:00:35]}  a5 {[%clk 0:00:59]} 29. Qb5 {[%clk 0:00:32]}  e5 {[%clk 0:00:52]} 30. Rc1 {[%clk 0:00:25]}  Rd1+ {[%clk 0:00:51]} 31. Rxd1 {[%clk 0:00:25]}  Qxd1+ {[%clk 0:00:52]} 32. Kh2 {[%clk 0:00:26]}  Qd7 {[%clk 0:00:50]} 33. f4 {[%clk 0:00:22]}  Qe6 {[%clk 0:00:37]} 34. fxe5 {[%clk 0:00:20]}  fxe5 {[%clk 0:00:37]} 35. Qd5 {[%clk 0:00:18]}  Kf7 {[%clk 0:00:36]} 36. g4 {[%clk 0:00:14]}  Qxd5 {[%clk 0:00:35]} 37. exd5 {[%clk 0:00:15]}  Ne7 {[%clk 0:00:33]} 38. Bxe5 {[%clk 0:00:14]}  Nxd5 {[%clk 0:00:34]} 39. Kg3 {[%clk 0:00:12]}  Nc3 {[%clk 0:00:22]} 40. a4 {[%clk 0:00:12]}  Ne4+ {[%clk 0:00:19]} 41. Kf4 {[%clk 0:00:12]}  Nd2 {[%clk 0:00:20]} 42. Bc7 {[%clk 0:00:09]}  Nxb3 {[%clk 0:00:21]} 43. Ke5 {[%clk 0:00:06]}  Nd2 {[%clk 0:00:17]} 44. Bxa5 {[%clk 0:00:06]}  Nc4+ {[%clk 0:00:17]} 45. Kd4 {[%clk 0:00:01]}  Nxa5 {[%clk 0:00:18]} 0-1


[Site "https://www.chess.com"]

[Event "Titled Tuesday Blitz May 4 2021"]
[White "Bendayan Claros, Aaron"]
[Black "Shtyka, Sergey"]
[WhiteFideId "3803392"]
[BlackFideId "4138465"]
[WhiteElo "2166"]
[BlackElo "2102"]
[Result "1/2-1/2"]
[Round "08"]
[TimeControl "180+1"]
[Date "2021.05.04"]
[WhiteClock "0:00:04"]
[BlackClock "0:00:04"]

1. d4 {[%clk 0:03:00]}  c5 {[%clk 0:02:58]} 2. e3 {[%clk 0:03:00]}  e6 {[%clk 0:02:56]} 3. c3 {[%clk 0:03:00]}  Nf6 {[%clk 0:02:55]} 4. Bd3 {[%clk 0:03:00]}  Be7 {[%clk 0:02:55]} 5. Nd2 {[%clk 0:02:59]}  O-O {[%clk 0:02:55]} 6. Ngf3 {[%clk 0:03:00]}  d6 {[%clk 0:02:54]} 7. O-O {[%clk 0:02:59]}  Nbd7 {[%clk 0:02:55]} 8. Qe2 {[%clk 0:02:59]}  Re8 {[%clk 0:02:54]} 9. e4 {[%clk 0:02:59]}  Nf8 {[%clk 0:02:53]} 10. Re1 {[%clk 0:02:57]}  Ng6 {[%clk 0:02:53]} 11. Nf1 {[%clk 0:02:54]}  e5 {[%clk 0:02:47]} 12. dxe5 {[%clk 0:02:49]}  dxe5 {[%clk 0:02:46]} 13. Bc4 {[%clk 0:02:34]}  a6 {[%clk 0:02:30]} 14. a4 {[%clk 0:02:34]}  Nh5 {[%clk 0:02:28]} 15. Ne3 {[%clk 0:02:26]}  Nhf4 {[%clk 0:02:24]} 16. Qf1 {[%clk 0:02:06]}  Be6 {[%clk 0:02:22]} 17. Rd1 {[%clk 0:01:58]}  Qc8 {[%clk 0:02:17]} 18. Nd5 {[%clk 0:01:53]}  Bxd5 {[%clk 0:02:09]} 19. Bxd5 {[%clk 0:01:50]}  Nxd5 {[%clk 0:02:08]} 20. Rxd5 {[%clk 0:01:49]}  Qc7 {[%clk 0:02:00]} 21. Be3 {[%clk 0:01:30]}  Rad8 {[%clk 0:01:58]} 22. Rad1 {[%clk 0:01:29]}  Rxd5 {[%clk 0:01:57]} 23. Rxd5 {[%clk 0:01:30]}  Rd8 {[%clk 0:01:56]} 24. Qc4 {[%clk 0:01:28]}  Rxd5 {[%clk 0:01:38]} 25. Qxd5 {[%clk 0:01:28]}  Qd6 {[%clk 0:01:37]} 26. g3 {[%clk 0:01:15]}  Qxd5 {[%clk 0:01:34]} 27. exd5 {[%clk 0:01:15]}  b5 {[%clk 0:01:24]} 28. axb5 {[%clk 0:01:13]}  axb5 {[%clk 0:01:25]} 29. b3 {[%clk 0:01:12]}  f5 {[%clk 0:01:08]} 30. c4 {[%clk 0:01:09]}  e4 {[%clk 0:01:07]} 31. Nd2 {[%clk 0:00:56]}  bxc4 {[%clk 0:01:02]} 32. bxc4 {[%clk 0:00:56]}  Kf7 {[%clk 0:00:57]} 33. f4 {[%clk 0:00:51]}  exf3 {[%clk 0:00:47]} 34. Nxf3 {[%clk 0:00:50]}  h6 {[%clk 0:00:42]} 35. Kf2 {[%clk 0:00:45]}  Kf6 {[%clk 0:00:42]} 36. Bf4 {[%clk 0:00:21]}  Nf8 {[%clk 0:00:17]} 37. Be5+ {[%clk 0:00:20]}  Kf7 {[%clk 0:00:18]} 38. h4 {[%clk 0:00:17]}  Nd7 {[%clk 0:00:18]} 39. Ke3 {[%clk 0:00:16]}  g6 {[%clk 0:00:16]} 40. Bc3 {[%clk 0:00:15]}  g5 {[%clk 0:00:16]} 41. hxg5 {[%clk 0:00:15]}  hxg5 {[%clk 0:00:17]} 42. Kd3 {[%clk 0:00:16]}  Bf6 {[%clk 0:00:15]} 43. Ba5 {[%clk 0:00:14]}  g4 {[%clk 0:00:13]} 44. Ng1 {[%clk 0:00:14]}  Be5 {[%clk 0:00:14]} 45. Ne2 {[%clk 0:00:14]}  Kf6 {[%clk 0:00:14]} 46. Bd2 {[%clk 0:00:14]}  Bd6 {[%clk 0:00:13]} 47. Bc3+ {[%clk 0:00:15]}  Be5 {[%clk 0:00:13]} 48. Bd2 {[%clk 0:00:15]}  Ke7 {[%clk 0:00:13]} 49. Bg5+ {[%clk 0:00:15]}  Kd6 {[%clk 0:00:13]} 50. Bh6 {[%clk 0:00:14]}  Nf6 {[%clk 0:00:13]} 51. Bf8+ {[%clk 0:00:11]}  Kd7 {[%clk 0:00:11]} 52. Bxc5 {[%clk 0:00:12]}  Ne4 {[%clk 0:00:11]} 53. Bd4 {[%clk 0:00:06]}  Bxg3 {[%clk 0:00:10]} 54. c5 {[%clk 0:00:06]}  Bb8 {[%clk 0:00:08]} 55. Kc4 {[%clk 0:00:05]}  Nd2+ {[%clk 0:00:08]} 56. Kd3 {[%clk 0:00:05]}  Nb3 {[%clk 0:00:08]} 57. Kc4 {[%clk 0:00:05]}  Na5+ {[%clk 0:00:06]} 58. Kb5 {[%clk 0:00:04]}  Nb3 {[%clk 0:00:04]} 59. Be3 {[%clk 0:00:04]}  g3 {[%clk 0:00:03]} 60. c6+ {[%clk 0:00:03]}  Kc8 {[%clk 0:00:02]} 61. Kb6 {[%clk 0:00:03]}  Bc7+ {[%clk 0:00:02]} 62. Kb5 {[%clk 0:00:03]}  Bd6 {[%clk 0:00:03]} 63. Kc4 {[%clk 0:00:03]}  Na1 {[%clk 0:00:03]} 64. Bf4 {[%clk 0:00:04]}  Bxf4 {[%clk 0:00:03]} 65. Nxf4 {[%clk 0:00:05]}  Nc2 {[%clk 0:00:03]} 66. d6 {[%clk 0:00:05]}  Ne3+ {[%clk 0:00:03]} 67. Kc5 {[%clk 0:00:05]}  g2 {[%clk 0:00:04]} 68. Nxg2 {[%clk 0:00:04]}  Nxg2 {[%clk 0:00:05]} 69. Kb6 {[%clk 0:00:05]}  Ne3 {[%clk 0:00:03]} 70. d7+ {[%clk 0:00:05]}  Kd8 {[%clk 0:00:03]} 71. c7+ {[%clk 0:00:06]}  Kxd7 {[%clk 0:00:02]} 72. Kb7 {[%clk 0:00:06]}  Nd5 {[%clk 0:00:02]} 73. c8=Q+ {[%clk 0:00:06]}  Kd6 {[%clk 0:00:03]} 74. Qxf5 {[%clk 0:00:06]}  Kc5 {[%clk 0:00:02]} 75. Qh5 {[%clk 0:00:05]}  Kd4 {[%clk 0:00:02]} 76. Kc6 {[%clk 0:00:05]}  Nb4+ {[%clk 0:00:02]} 77. Kd6 {[%clk 0:00:05]}  Nd3 {[%clk 0:00:03]} 78. Qh4+ {[%clk 0:00:05]}  Ke3 {[%clk 0:00:03]} 79. Kd5 {[%clk 0:00:04]}  Nf4+ {[%clk 0:00:03]} 80. Ke5 {[%clk 0:00:04]}  Ng6+ {[%clk 0:00:03]} 81. Kf6 {[%clk 0:00:04]}  Nxh4 {[%clk 0:00:04]} 1/2-1/2


[Site "https://www.chess.com"]

[Event "Titled Tuesday Blitz May 4 2021"]
[White "Bongo Akanga Ndjila, Barthelemy"]
[Black "Kiseljova, Marya"]
[WhiteFideId "10609431"]
[BlackFideId "4155009"]
[WhiteElo "1803"]
[BlackElo "1797"]
[Result "0-1"]
[Round "08"]
[TimeControl "180+1"]
[Date "2021.05.04"]
[WhiteClock "0:00:06"]
[BlackClock "0:00:23"]

1. d4 {[%clk 0:03:00]}  d5 {[%clk 0:02:59]} 2. Nf3 {[%clk 0:03:00]}  e6 {[%clk 0:02:58]} 3. Bg5 {[%clk 0:02:58]}  Nf6 {[%clk 0:02:56]} 4. e3 {[%clk 0:02:56]}  Be7 {[%clk 0:02:45]} 5. Nbd2 {[%clk 0:02:54]}  O-O {[%clk 0:02:44]} 6. Bd3 {[%clk 0:02:54]}  c5 {[%clk 0:02:42]} 7. c3 {[%clk 0:02:54]}  Nc6 {[%clk 0:02:40]} 8. a4 {[%clk 0:02:54]}  b6 {[%clk 0:02:30]} 9. O-O {[%clk 0:02:51]}  Bb7 {[%clk 0:02:30]} 10. Re1 {[%clk 0:02:51]}  h6 {[%clk 0:02:30]} 11. Bh4 {[%clk 0:02:50]}  Ng4 {[%clk 0:02:27]} 12. Bxe7 {[%clk 0:02:49]}  Qxe7 {[%clk 0:02:25]} 13. e4 {[%clk 0:02:49]}  dxe4 {[%clk 0:02:21]} 14. Nxe4 {[%clk 0:02:48]}  cxd4 {[%clk 0:02:20]} 15. cxd4 {[%clk 0:02:46]}  Nf6 {[%clk 0:02:14]} 16. Ng3 {[%clk 0:02:44]}  Rfd8 {[%clk 0:02:08]} 17. Rc1 {[%clk 0:02:42]}  Qd6 {[%clk 0:02:00]} 18. Bb1 {[%clk 0:02:36]}  Nxd4 {[%clk 0:01:55]} 19. Nxd4 {[%clk 0:02:33]}  Qxd4 {[%clk 0:01:55]} 20. Qe2 {[%clk 0:02:17]}  Qd5 {[%clk 0:01:49]} 21. f3 {[%clk 0:02:14]}  Qd4+ {[%clk 0:01:48]} 22. Kh1 {[%clk 0:02:13]}  Qxa4 {[%clk 0:01:48]} 23. Rc7 {[%clk 0:02:08]}  Ba6 {[%clk 0:01:48]} 24. Qe5 {[%clk 0:01:58]}  Rd1 {[%clk 0:01:39]} 25. Rc1 {[%clk 0:01:33]}  Rxe1+ {[%clk 0:01:30]} 26. Qxe1 {[%clk 0:01:29]}  Rd8 {[%clk 0:01:28]} 27. h3 {[%clk 0:01:18]}  Qf4 {[%clk 0:01:25]} 28. Ne4 {[%clk 0:01:08]}  Nxe4 {[%clk 0:01:24]} 29. Bxe4 {[%clk 0:01:07]}  Bb5 {[%clk 0:01:16]} 30. Rd1 {[%clk 0:01:05]}  Rc8 {[%clk 0:01:07]} 31. Qb4 {[%clk 0:00:56]}  Qe5 {[%clk 0:00:57]} 32. Qe7 {[%clk 0:00:48]}  f5 {[%clk 0:00:48]} 33. Bb7 {[%clk 0:00:37]}  Rc7 {[%clk 0:00:45]} 34. Qd8+ {[%clk 0:00:11]}  Kh7 {[%clk 0:00:45]} 35. Bc8 {[%clk 0:00:11]}  Ba4 {[%clk 0:00:36]} 36. Rg1 {[%clk 0:00:08]}  Bb3 {[%clk 0:00:32]} 37. Ba6 {[%clk 0:00:06]}  Rc2 {[%clk 0:00:23]} 0-1


[Site "https://www.chess.com"]

[Event "Titled Tuesday Blitz May 4 2021"]
[White "Bortnyk, Olexandr"]
[Black "Rojas Alarcon, Julian Antonio"]
[WhiteFideId "14120828"]
[BlackFideId "5107407"]
[WhiteElo "2723"]
[BlackElo "2333"]
[Result "1-0"]
[Round "08"]
[TimeControl "180+1"]
[Date "2021.05.04"]
[WhiteClock "0:01:01"]
[BlackClock "0:00:03"]

1. e4 {[%clk 0:03:00]}  e5 {[%clk 0:02:56]} 2. Nf3 {[%clk 0:02:59]}  Nf6 {[%clk 0:02:57]} 3. Nxe5 {[%clk 0:02:58]}  d6 {[%clk 0:02:56]} 4. Nf3 {[%clk 0:02:58]}  Nxe4 {[%clk 0:02:55]} 5. Bd3 {[%clk 0:02:59]}  Nf6 {[%clk 0:02:52]} 6. O-O {[%clk 0:02:59]}  Be7 {[%clk 0:02:53]} 7. c3 {[%clk 0:02:56]}  O-O {[%clk 0:02:53]} 8. Bc2 {[%clk 0:02:54]}  Bg4 {[%clk 0:02:51]} 9. d4 {[%clk 0:02:54]}  Nbd7 {[%clk 0:02:51]} 10. Re1 {[%clk 0:02:52]}  Re8 {[%clk 0:02:51]} 11. Nbd2 {[%clk 0:02:46]}  c6 {[%clk 0:02:47]} 12. Nf1 {[%clk 0:02:45]}  Bf8 {[%clk 0:02:40]} 13. Rxe8 {[%clk 0:02:42]}  Qxe8 {[%clk 0:02:37]} 14. Ng3 {[%clk 0:02:43]}  Bxf3 {[%clk 0:02:31]} 15. Qxf3 {[%clk 0:02:41]}  Qe1+ {[%clk 0:02:26]} 16. Nf1 {[%clk 0:02:39]}  Re8 {[%clk 0:02:27]} 17. Rb1 {[%clk 0:02:34]}  Qe2 {[%clk 0:02:08]} 18. Qxe2 {[%clk 0:01:57]}  Rxe2 {[%clk 0:02:09]} 19. Bd3 {[%clk 0:01:52]}  Re8 {[%clk 0:02:00]} 20. Bf4 {[%clk 0:01:46]}  g6 {[%clk 0:01:46]} 21. a4 {[%clk 0:01:43]}  d5 {[%clk 0:01:40]} 22. f3 {[%clk 0:01:44]}  h5 {[%clk 0:01:38]} 23. a5 {[%clk 0:01:39]}  a6 {[%clk 0:01:36]} 24. Kf2 {[%clk 0:01:39]}  Kh7 {[%clk 0:01:36]} 25. h4 {[%clk 0:01:39]}  Bh6 {[%clk 0:01:35]} 26. Bc7 {[%clk 0:01:38]}  Rc8 {[%clk 0:01:26]} 27. Bh2 {[%clk 0:01:37]}  Re8 {[%clk 0:01:24]} 28. Ra1 {[%clk 0:01:37]}  Kg8 {[%clk 0:01:21]} 29. Ra3 {[%clk 0:01:37]}  Nf8 {[%clk 0:01:15]} 30. Bd6 {[%clk 0:01:31]}  Ne6 {[%clk 0:00:29]} 31. Rb3 {[%clk 0:01:31]}  Bf4 {[%clk 0:00:26]} 32. Ba3 {[%clk 0:01:26]}  Rb8 {[%clk 0:00:25]} 33. g3 {[%clk 0:01:18]}  Bc7 {[%clk 0:00:24]} 34. Be7 {[%clk 0:01:17]}  Nd7 {[%clk 0:00:24]} 35. Bb4 {[%clk 0:01:16]}  c5 {[%clk 0:00:24]} 36. Ne3 {[%clk 0:01:00]}  cxb4 {[%clk 0:00:23]} 37. Nxd5 {[%clk 0:01:00]}  Bxa5 {[%clk 0:00:22]} 38. f4 {[%clk 0:00:59]}  b5 {[%clk 0:00:17]} 39. f5 {[%clk 0:00:58]}  Nef8 {[%clk 0:00:14]} 40. Ne7+ {[%clk 0:00:58]}  Kg7 {[%clk 0:00:13]} 41. Nc6 {[%clk 0:00:59]}  Bc7 {[%clk 0:00:11]} 42. Nxb8 {[%clk 0:01:00]}  Bxb8 {[%clk 0:00:12]} 43. Rxb4 {[%clk 0:01:00]}  Bd6 {[%clk 0:00:12]} 44. Rb3 {[%clk 0:01:00]}  gxf5 {[%clk 0:00:12]} 45. c4 {[%clk 0:00:59]}  Nb6 {[%clk 0:00:13]} 46. c5 {[%clk 0:00:59]}  Bc7 {[%clk 0:00:02]} 47. cxb6 {[%clk 0:00:59]}  Bxb6 {[%clk 0:00:03]} 48. Bxf5 {[%clk 0:01:00]}  Bxd4+ {[%clk 0:00:03]} 49. Kf3 {[%clk 0:01:01]}  Kf6 {[%clk 0:00:03]} 50. Bc8 {[%clk 0:01:01]}  Be5 {[%clk 0:00:03]} 51. Bxa6 {[%clk 0:01:01]} 1-0


[Site "https://www.chess.com"]

[Event "Titled Tuesday Blitz May 4 2021"]
[White "Bugayev, Vladimir"]
[Black "Valdes Romero, Leonardo"]
[WhiteFideId "30901480"]
[BlackFideId "6500331"]
[WhiteElo "2340"]
[BlackElo "2497"]
[Result "0-1"]
[Round "08"]
[TimeControl "180+1"]
[Date "2021.05.04"]
[WhiteClock "0:00:06"]
[BlackClock "0:00:20"]

1. e4 {[%clk 0:03:00]}  e5 {[%clk 0:02:58]} 2. Nf3 {[%clk 0:02:58]}  Nf6 {[%clk 0:02:58]} 3. Nc3 {[%clk 0:02:53]}  Bb4 {[%clk 0:02:56]} 4. Nxe5 {[%clk 0:02:52]}  O-O {[%clk 0:02:54]} 5. Nd3 {[%clk 0:02:52]}  Bxc3 {[%clk 0:02:53]} 6. dxc3 {[%clk 0:02:53]}  Nxe4 {[%clk 0:02:53]} 7. Nf4 {[%clk 0:02:53]}  Re8 {[%clk 0:02:52]} 8. Be3 {[%clk 0:02:54]}  d6 {[%clk 0:02:48]} 9. Be2 {[%clk 0:02:48]}  Nc6 {[%clk 0:02:47]} 10. O-O {[%clk 0:02:42]}  h6 {[%clk 0:02:42]} 11. c4 {[%clk 0:02:32]}  Bf5 {[%clk 0:02:09]} 12. Nd5 {[%clk 0:02:11]}  Qd7 {[%clk 0:02:00]} 13. f3 {[%clk 0:01:59]}  Nc5 {[%clk 0:01:54]} 14. g4 {[%clk 0:01:23]}  Be6 {[%clk 0:01:51]} 15. b4 {[%clk 0:01:20]}  Bxd5 {[%clk 0:01:44]} 16. Bxc5 {[%clk 0:01:19]}  dxc5 {[%clk 0:01:40]} 17. cxd5 {[%clk 0:01:15]}  Nxb4 {[%clk 0:01:38]} 18. c4 {[%clk 0:01:14]}  a5 {[%clk 0:01:24]} 19. a3 {[%clk 0:00:57]}  Na6 {[%clk 0:01:24]} 20. Bd3 {[%clk 0:00:57]}  Qd6 {[%clk 0:01:20]} 21. Rb1 {[%clk 0:00:51]}  b6 {[%clk 0:01:17]} 22. Be4 {[%clk 0:00:51]}  Re7 {[%clk 0:01:16]} 23. Qd3 {[%clk 0:00:40]}  Rae8 {[%clk 0:01:15]} 24. Rf2 {[%clk 0:00:31]}  Nb8 {[%clk 0:01:15]} 25. Re1 {[%clk 0:00:28]}  Nd7 {[%clk 0:01:15]} 26. Rfe2 {[%clk 0:00:29]}  Nf6 {[%clk 0:01:14]} 27. Bf5 {[%clk 0:00:19]}  Kf8 {[%clk 0:01:12]} 28. Rxe7 {[%clk 0:00:17]}  Rxe7 {[%clk 0:01:12]} 29. Rxe7 {[%clk 0:00:16]}  Qxe7 {[%clk 0:01:12]} 30. Kf2 {[%clk 0:00:16]}  Qe5 {[%clk 0:01:11]} 31. Kg2 {[%clk 0:00:15]}  g6 {[%clk 0:01:09]} 32. Be4 {[%clk 0:00:15]}  Kg7 {[%clk 0:01:07]} 33. h4 {[%clk 0:00:13]}  a4 {[%clk 0:01:05]} 34. Kh3 {[%clk 0:00:13]}  Qf4 {[%clk 0:00:56]} 35. Qc2 {[%clk 0:00:11]}  g5 {[%clk 0:00:49]} 36. hxg5 {[%clk 0:00:10]}  hxg5 {[%clk 0:00:50]} 37. Kg2 {[%clk 0:00:10]}  Qe5 {[%clk 0:00:48]} 38. Bf5 {[%clk 0:00:08]}  Qe3 {[%clk 0:00:23]} 39. Qxa4 {[%clk 0:00:08]}  Qe2+ {[%clk 0:00:23]} 40. Kg3 {[%clk 0:00:08]}  Qe5+ {[%clk 0:00:23]} 41. Kf2 {[%clk 0:00:08]}  Nh5 {[%clk 0:00:20]} 42. Qd7 {[%clk 0:00:07]}  Nf4 {[%clk 0:00:20]} 43. Be6 {[%clk 0:00:06]}  Qe2+ {[%clk 0:00:19]} 44. Kg3 {[%clk 0:00:06]}  Qg2# {[%clk 0:00:20]} 0-1


[Site "https://www.chess.com"]

[Event "Titled Tuesday Blitz May 4 2021"]
[White "Buksa, Nataliya"]
[Black "Kazakouski, Valery"]
[WhiteFideId "14123622"]
[BlackFideId "13507443"]
[WhiteElo "2214"]
[BlackElo "2546"]
[Result "1/2-1/2"]
[Round "08"]
[TimeControl "180+1"]
[Date "2021.05.04"]
[WhiteClock "0:00:19"]
[BlackClock "0:00:05"]

1. d4 {[%clk 0:03:00]}  Nf6 {[%clk 0:02:58]} 2. Nc3 {[%clk 0:03:01]}  d5 {[%clk 0:02:58]} 3. Bf4 {[%clk 0:03:00]}  c5 {[%clk 0:02:58]} 4. e3 {[%clk 0:03:00]}  cxd4 {[%clk 0:02:56]} 5. exd4 {[%clk 0:03:00]}  a6 {[%clk 0:02:56]} 6. Nf3 {[%clk 0:03:00]}  Bg4 {[%clk 0:02:56]} 7. Be2 {[%clk 0:02:59]}  Bxf3 {[%clk 0:02:53]} 8. Bxf3 {[%clk 0:02:57]}  Nc6 {[%clk 0:02:54]} 9. g4 {[%clk 0:02:55]}  e6 {[%clk 0:02:47]} 10. g5 {[%clk 0:02:55]}  Nd7 {[%clk 0:02:47]} 11. Qd2 {[%clk 0:02:52]}  Nb6 {[%clk 0:02:44]} 12. Be2 {[%clk 0:02:49]}  Na5 {[%clk 0:02:23]} 13. Nd1 {[%clk 0:01:37]}  Nac4 {[%clk 0:02:19]} 14. Bxc4 {[%clk 0:01:28]}  Nxc4 {[%clk 0:02:12]} 15. Qe2 {[%clk 0:01:28]}  Be7 {[%clk 0:01:47]} 16. h4 {[%clk 0:01:24]}  Qb6 {[%clk 0:01:37]} 17. c3 {[%clk 0:01:23]}  Rc8 {[%clk 0:01:37]} 18. b3 {[%clk 0:01:08]}  Nd6 {[%clk 0:01:33]} 19. Bxd6 {[%clk 0:01:08]}  Qxd6 {[%clk 0:01:24]} 20. Qe3 {[%clk 0:01:06]}  h6 {[%clk 0:01:19]} 21. f4 {[%clk 0:00:55]}  hxg5 {[%clk 0:01:06]} 22. fxg5 {[%clk 0:00:55]}  f6 {[%clk 0:00:49]} 23. gxf6 {[%clk 0:00:43]}  Bxf6 {[%clk 0:00:49]} 24. Nf2 {[%clk 0:00:44]}  Rxh4 {[%clk 0:00:37]} 25. O-O-O {[%clk 0:00:34]}  Qf4 {[%clk 0:00:27]} 26. Qxf4 {[%clk 0:00:33]}  Rxf4 {[%clk 0:00:27]} 27. Rh8+ {[%clk 0:00:34]}  Kd7 {[%clk 0:00:27]} 28. Rxc8 {[%clk 0:00:34]}  Kxc8 {[%clk 0:00:27]} 29. Nd3 {[%clk 0:00:34]}  Re4 {[%clk 0:00:24]} 30. Rf1 {[%clk 0:00:31]}  Re2 {[%clk 0:00:22]} 31. Kb1 {[%clk 0:00:27]}  b6 {[%clk 0:00:19]} 32. Nf4 {[%clk 0:00:27]}  Re3 {[%clk 0:00:19]} 33. Nh5 {[%clk 0:00:27]}  Rxc3 {[%clk 0:00:18]} 34. Nxf6 {[%clk 0:00:27]}  gxf6 {[%clk 0:00:19]} 35. Rxf6 {[%clk 0:00:27]}  Re3 {[%clk 0:00:20]} 36. Kc2 {[%clk 0:00:27]}  Re2+ {[%clk 0:00:18]} 37. Kd3 {[%clk 0:00:25]}  Re4 {[%clk 0:00:17]} 38. Rf7 {[%clk 0:00:25]}  a5 {[%clk 0:00:15]} 39. a4 {[%clk 0:00:20]}  Re1 {[%clk 0:00:15]} 40. Re7 {[%clk 0:00:19]}  Re4 {[%clk 0:00:09]} 41. Rf7 {[%clk 0:00:18]}  Rh4 {[%clk 0:00:07]} 42. Re7 {[%clk 0:00:18]}  Rh3+ {[%clk 0:00:08]} 43. Kc2 {[%clk 0:00:18]}  Rh2+ {[%clk 0:00:08]} 44. Kc3 {[%clk 0:00:18]}  Rh3+ {[%clk 0:00:09]} 45. Kc2 {[%clk 0:00:19]}  Rh6 {[%clk 0:00:10]} 46. Kc3 {[%clk 0:00:19]}  Rh3+ {[%clk 0:00:05]} 47. Kc2 {[%clk 0:00:19]} 1/2-1/2


[Site "https://www.chess.com"]